fUSD/lending_fUSD_20250226
["ID","MTS","AMOUNT","RATE_DAILY","PERIOD"]
[354620778,1740595965291,-1472.3,0.00040273,14]
[354620779,1740595965302,-1096.63,0.00040273,14]
[354620780,1740595965313,-882.85,0.00040273,14]
[354620781,1740595965324,-505.62,0.00040273,14]
[354620782,1740595965335,-966.9,0.00040273,14]
[354620783,1740595965346,-1708.56,0.00040273,14]
[354620784,1740595965357,-1141.53,0.00040273,7]
[354620785,1740595965368,-1382.5,0.00040273,14]
[354620786,1740595965378,-811.04,0.00040273,14]
[354620787,1740595965388,-669.94,0.00040273,14]
[354620788,1740595965400,-691.77,0.00040273,14]
[354620789,1740595965410,-1910.93,0.00040273,14]
[354620790,1740595965420,-530.0,0.00040273,14]
[354620791,1740595965429,-500.0,0.00040273,14]
[354620792,1740595965439,-874.49,0.00040273,14]
[354620793,1740595965449,-776.22,0.00040273,14]
[354620794,1740595965662,-2493.41,0.00040273,14]
[354620795,1740595965673,-811.0,0.00040273,14]
[354620796,1740595965683,-2143.28,0.00040273,14]
[354620797,1740595965694,-2617.36,0.00040273,14]
[354620798,1740595965704,-1621.78,0.00040273,14]
[354620799,1740595965714,-2319.53,0.00040273,14]
[354620800,1740595965724,-500.0,0.00040273,14]
[354620801,1740595965734,-500.0,0.00040273,14]
[354620802,1740595965743,-529.04,0.00040273,14]
[354620803,1740595965753,-768.45,0.00040273,14]
[354620804,1740595965763,-500.0,0.00040273,14]
[354620805,1740595965773,-1163.2,0.00040273,14]
[354620806,1740595965783,-500.0,0.00040273,14]
[354620807,1740595965793,-911.1,0.00040273,14]
[354620808,1740595965802,-2143.46,0.00040273,14]
[354620809,1740595965811,-1280.98,0.00040273,14]
[354620810,1740595965821,-500.0,0.00040273,14]
[354620811,1740595965830,-1855.75,0.00040273,14]
[354620812,1740595965839,-873.58,0.00040273,14]
[354620813,1740595965849,-939.46,0.00040273,14]
[354620814,1740595965859,-500.0,0.00040273,14]
[354620815,1740595965869,-1902.32,0.00040273,14]
[354620816,1740595965879,-1142.01,0.00040273,14]
[354620817,1740595965890,-938.37,0.00040273,14]
[354620818,1740595965907,-800.79,0.00040273,14]
[354620819,1740595965918,-512.47,0.00040273,14]
[354620820,1740595965929,-2507.28,0.00040273,2]
[354620821,1740595965940,-1981.71,0.00040273,14]
[354620822,1740595965952,-731.9,0.00040273,14]
[354620823,1740595965963,-1276.51,0.00040273,14]
[354620824,1740595965977,-500.0,0.00040273,14]
[354620825,1740595965988,-708.24,0.00040273,14]
[354620826,1740595965999,-500.0,0.00040273,14]
[354620827,1740595966009,-2733.74,0.00040273,14]
[354620828,1740595966020,-2252.01,0.00040273,14]
[354620829,1740595966038,-891.14,0.00040273,14]
[354620830,1740595966049,-552.36,0.00040273,14]
[354620831,1740595966060,-630.12,0.00040273,14]
[354620832,1740595966072,-500.0,0.00040273,14]
[354620833,1740595966082,-642.98,0.00040273,14]
[354620834,1740595966093,-1991.31,0.00040273,14]
[354620835,1740595966103,-1022.27,0.00040273,14]
[354620836,1740595966115,-1294.07,0.00040273,14]
[354620837,1740595966125,-1853.21,0.00040273,14]
[354620838,1740595966135,-630.96,0.00040273,14]
[354620839,1740595966148,-1573.28,0.00040273,14]
[354620840,1740595966158,-2426.57,0.00040273,14]
[354620841,1740595966170,-2490.78,0.00040273,14]
[354620842,1740595966181,-1150.32,0.00040273,14]
[354620843,1740595966192,-715.02,0.00040273,14]
[354620844,1740595966203,-3484.94,0.00040273,14]
[354620845,1740595966213,-500.0,0.00040273,14]
[354620846,1740595966224,-2771.33,0.00040273,14]
[354620847,1740595966235,-500.0,0.00040273,14]
[354620848,1740595966245,-1596.62,0.00040273,14]
[354620849,1740595966256,-1876.78,0.00040273,14]
[354620850,1740595966267,-1560.4,0.00040273,14]
[354620851,1740595966280,-6192.85,0.00040273,14]
[354620852,1740595966290,-647.32,0.00040273,14]
[354620853,1740595966301,-1726.29,0.00040273,14]
[354620854,1740595966312,-1676.26,0.00040273,14]
[354620855,1740595966323,-2725.95,0.00040273,14]
[354620856,1740595966333,-563.72,0.00040273,14]
[354620857,1740595966343,-944.42,0.00040273,14]
[354620858,1740595966354,-3837.57,0.00040273,14]
[354620859,1740595966365,-1361.35,0.00040273,14]
[354620860,1740595966375,-1302.57,0.00040273,14]
[354620861,1740595966386,-688.53,0.00040273,14]
[354620862,1740595966401,-11693.75,0.00040273,14]
[354620863,1740595966412,-861.86,0.00040273,14]
[354620864,1740595966423,-3063.11,0.00040273,14]
[354620865,1740595966434,-1132.99,0.00040273,14]
[354620866,1740595966445,-2812.52,0.00040273,14]
[354620867,1740595966456,-2332.02,0.00040273,14]
[354620868,1740595966466,-3032.5,0.00040273,14]
[354620869,1740595966477,-1403.52,0.00040273,14]
[354620870,1740595966489,-2514.92,0.00040273,14]
[354620871,1740595966500,-840.17,0.00040273,14]
[354620872,1740595966511,-3285.15,0.00040273,14]
[354620873,1740595966522,-1217.25,0.00040273,14]
[354620874,1740595966532,-2864.92,0.00040273,14]
[354620875,1740595966543,-829.58,0.00040273,14]
[354620876,1740595966554,-521.32,0.00040273,14]
[354620877,1740595966565,-1548.49,0.00040273,14]
[354620878,1740595966576,-1797.4,0.00040273,14]
[354620879,1740595966590,-3783.79,0.00040273,14]
[354620880,1740595966601,-577.91,0.00040273,14]
[354620881,1740595966611,-1141.09,0.00040273,14]
[354620882,1740595966622,-6297.9,0.00040273,14]
[354620883,1740595966632,-2194.13,0.00040273,14]
[354620884,1740595966643,-2625.14,0.00040273,14]
[354620885,1740595966655,-1289.77,0.00040273,14]
[354620886,1740595966666,-564.43,0.00040273,14]
[354620887,1740595966676,-2622.68,0.00040273,14]
[354620888,1740595966687,-3149.85,0.00040273,14]
[354620889,1740595966697,-806.4,0.00040273,14]
[354620890,1740595966707,-2632.85,0.00040273,14]
[354620891,1740595966717,-2112.2,0.00040273,14]
[354620892,1740595966728,-3833.32,0.00040273,14]
[354620893,1740595966737,-1648.8,0.00040273,14]
[354620894,1740595966747,-5487.93,0.00040273,14]
[354620895,1740595966755,-2311.59,0.00040273,14]
[354620896,1740595966763,-974.58,0.00040273,14]
[354620897,1740595966772,-565.43,0.00040273,14]
[354620898,1740595966782,-1343.0,0.00040273,14]
[354620899,1740595966791,-11841.49,0.00040273,14]
[354620900,1740595966801,-567.13,0.00040273,14]
[354620901,1740595966810,-3413.54,0.00040273,14]
[354620902,1740595966819,-1833.27,0.00040273,14]
[354620903,1740595966831,-995.26,0.00040273,14]
[354620904,1740595966841,-3517.26,0.00040273,14]
[354620905,1740595966850,-7439.57,0.00040273,14]
[354620906,1740595966860,-1238.69,0.00040273,14]
[354620907,1740595966869,-1700.63,0.00040273,14]
[354620908,1740595966879,-2752.94,0.00040273,14]
[354620909,1740595966889,-4507.25,0.00040273,14]
[354620910,1740595966899,-1862.26,0.00040273,14]
[354620911,1740595966909,-1154.79,0.00040273,14]
[354620912,1740595966919,-639.34,0.00040273,14]
[354620913,1740595966928,-1572.85,0.00040273,14]
[354620914,1740595966938,-3421.4,0.00040273,14]
[354620915,1740595966948,-1778.87,0.00040273,14]
[354620916,1740595966957,-1616.96,0.00040273,14]
[354620917,1740595966966,-696.16,0.00040273,14]
[354620918,1740595966980,-9182.73,0.00040273,14]
[354620919,1740595966989,-6709.93,0.00040273,14]
[354620920,1740595966998,-683.41,0.00040273,14]
[354620921,1740595967007,-682.72,0.00040273,14]
[354620922,1740595967018,-4316.65,0.00040273,14]
[354620923,1740595967028,-546.58,0.00040273,14]
[354620924,1740595967041,-3317.95,0.00040273,14]
[354620925,1740595967051,-1576.59,0.00040273,14]
[354620926,1740595967061,-604.02,0.00040273,14]
[354620927,1740595967071,-682.23,0.00040273,14]
[354620928,1740595967081,-876.15,0.00040273,14]
[354620929,1740595967091,-1898.38,0.00040273,14]
[354620930,1740595967100,-3418.9,0.00040273,14]
[354620931,1740595967110,-749.16,0.00040273,14]
[354620932,1740595967119,-2938.03,0.00040273,14]
[354620933,1740595967129,-1228.02,0.00040273,14]
[354620934,1740595967139,-2258.95,0.00040273,14]
[354620935,1740595967150,-1052.77,0.00040273,14]
[354620936,1740595967160,-500.0,0.00040273,14]
[354620937,1740595967170,-932.43,0.00040273,14]
[354620938,1740595967180,-1087.18,0.00040273,14]
[354620939,1740595967191,-3770.5,0.00040273,14]
[354620940,1740595967202,-4443.37,0.00040273,14]
[354620941,1740595967213,-841.55,0.00040273,14]
[354620942,1740595967222,-4370.98,0.00040273,14]
[354620943,1740595967233,-1077.8,0.00040273,14]
[354620944,1740595967243,-1662.55,0.00040273,14]
[354620945,1740595967254,-1684.75,0.00040273,14]
[354620946,1740595967264,-732.3,0.00040273,14]
[354620947,1740595967274,-669.42,0.00040273,14]
[354620948,1740595967284,-2153.43,0.00040273,14]
[354620949,1740595967294,-2455.03,0.00040273,14]
[354620950,1740595967304,-500.0,0.00040273,14]
[354620951,1740595967314,-8707.22,0.00040273,14]
[354620952,1740595967325,-555.94,0.00040273,14]
[354620953,1740595967336,-661.77,0.00040273,14]
[354620954,1740595967346,-1962.86,0.00040273,14]
[354620955,1740595967357,-14121.36,0.00040273,14]
[354620956,1740595967367,-1465.58,0.00040273,14]
[354620957,1740595967377,-3029.66,0.00040273,14]
[354620958,1740595967387,-3158.55,0.00040273,14]
[354620959,1740595967400,-677.06,0.00040273,14]
[354620960,1740595967410,-1234.59,0.00040273,14]
[354620961,1740595967420,-1124.82,0.00040273,14]
[354620962,1740595967430,-1087.29,0.00040273,14]
[354620963,1740595967441,-1184.83,0.00040273,14]
[354620964,1740595967451,-766.23,0.00040273,14]
[354620965,1740595967461,-1001.3,0.00040273,14]
[354620966,1740595967472,-617.69,0.00040273,14]
[354620967,1740595967482,-1731.67,0.00040273,14]
[354620968,1740595967493,-3138.97,0.00040273,14]
[354620969,1740595967503,-527.05,0.00040273,14]
[354620970,1740595967513,-1244.63,0.00040273,14]
[354620971,1740595967524,-850.11,0.00040273,14]
[354620972,1740595967534,-2099.68,0.00040273,14]
[354620973,1740595967543,-1394.32,0.00040273,14]
[354620974,1740595967553,-1086.92,0.00040273,14]
[354620975,1740595967563,-1256.63,0.00040273,14]
[354620976,1740595967574,-1776.24,0.00040273,14]
[354620977,1740595967583,-3802.94,0.00040273,14]
[354620978,1740595967593,-772.03,0.00040273,14]
[354620979,1740595967602,-500.0,0.00040273,14]
[354620980,1740595967612,-773.62,0.00040273,14]
[354620981,1740595967621,-666.36,0.00040273,14]
[354620982,1740595967631,-1317.17,0.00040273,14]
[354620983,1740595967640,-500.0,0.00040273,14]
[354620984,1740595967652,-204.41324471,0.00040273,14]
[354620985,1740595967662,-1507.85,0.00040273,14]
[354620986,1740595967672,-1264.32,0.00040273,14]
[354620987,1740595967682,-4383.06,0.00040273,14]
[354620988,1740595967692,-2961.3,0.00040273,14]
[354620989,1740595967703,-1388.89,0.00040273,14]
[354620990,1740595967714,-556.93,0.00040273,14]
[354620991,1740595967724,-3155.81,0.00040273,14]
[354620992,1740595967733,-561.98,0.00040273,14]
[354620993,1740595967743,-2270.77,0.00040273,14]
[354620994,1740595967754,-2142.0,0.00040274,14]
[354620995,1740595967765,-1232.0,0.00040274,14]
[354620996,1740595967775,-150.0,0.00040278,2]
[354620997,1740595967786,-736.9654706,0.0004028,120]
[354620998,1740595967796,-264.19291335,0.00040285,120]
[354620999,1740595967805,-200.0,0.00040323,120]
[354621000,1740595967816,-200.0,0.00040326,120]
[354621001,1740595967826,-2083.36556025,0.00040336,120]
[354621002,1740595967836,-737.484,0.0004036,120]
[354621003,1740595967846,-2083.36556025,0.00040361,120]
[354621004,1740595967857,-3932.96857403,0.00040365,120]
[354621005,1740595967868,-200.0,0.00040376,120]
[354621006,1740595967879,-737.484,0.0004038,120]
[354621007,1740595967889,-264.19291335,0.00040393,120]
[354621008,1740595967902,-300.0,0.000404,2]
[354621009,1740595967912,-300.0,0.000404,2]
[354621010,1740595967922,-377.46614524,0.00040438,30]
[354621011,1740595967934,-43339.20873861,0.0004048,10]
[354621012,1740595967945,-250.0,0.000405,2]
[354621013,1740595967955,-205.0,0.0004051,30]
[354621014,1740595967967,-652.64604617,0.00040545,2]
[354621015,1740595967983,-308.002646,0.00040547,14]
[354621016,1740595967995,-308.002646,0.00040547,14]
[354621017,1740595968005,-152.57917,0.00040547,14]
[354621018,1740595968017,-151.0,0.00040547,14]
[354621019,1740595968032,-151.0,0.00040547,14]
[354621020,1740595968044,-151.0,0.00040547,14]
[354621021,1740595968057,-151.0,0.00040547,14]
[354621022,1740595968069,-151.0,0.00040547,14]
[354621023,1740595968079,-672.636069,0.00040547,14]
[354621024,1740595968090,-676.71,0.00040547,14]
[354621025,1740595968101,-1501.590989,0.00040547,14]
[354621026,1740595968112,-870.39,0.00040547,14]
[354621027,1740595968122,-814.89,0.00040547,14]
[354621028,1740595968133,-1069.27,0.00040547,14]
[354621029,1740595968144,-1090.2,0.00040547,14]
[354621030,1740595968157,-500.0,0.00040547,14]
[354621031,1740595968167,-1150.39,0.00040547,14]
[354621032,1740595968178,-500.0,0.00040547,14]
[354621033,1740595968190,-701.36,0.00040547,14]
[354621034,1740595968202,-841.82,0.00040547,14]
[354621035,1740595968213,-500.0,0.00040547,14]
[354621036,1740595968224,-670.19,0.00040547,14]
[354621037,1740595968235,-184.82272802,0.00040547,14]
[354621038,1740595968246,-1844.05,0.00040547,14]
[354621039,1740595968256,-747.92,0.00040547,14]
[354621040,1740595968266,-835.83,0.00040547,14]
[354621041,1740595968277,-738.6,0.00040547,14]
[354621042,1740595968288,-1533.87,0.00040547,14]
[354621043,1740595968299,-1414.25,0.00040547,14]
[354621044,1740595968309,-865.08,0.00040547,14]
[354621045,1740595968320,-633.98,0.00040547,14]
[354621046,1740595968332,-600.33,0.00040547,14]
[354621047,1740595968342,-580.36,0.00040547,14]
[354621048,1740595968352,-742.35,0.00040547,14]
[354621049,1740595968363,-732.49,0.00040547,14]
[354621050,1740595968373,-527.1,0.00040547,14]
[354621051,1740595968383,-500.0,0.00040547,14]
[354621052,1740595968392,-935.03,0.00040547,14]
[354621053,1740595968404,-581.31,0.00040547,14]
[354621054,1740595968414,-689.42,0.00040547,14]
[354621055,1740595968424,-689.49,0.00040547,14]
[354621056,1740595968434,-543.41,0.00040547,14]
[354621057,1740595968443,-571.34,0.00040547,14]
[354621058,1740595968453,-696.87,0.00040547,14]
[354621059,1740595968463,-1290.39,0.00040547,14]
[354621060,1740595968473,-546.44,0.00040547,14]
[354621061,1740595968483,-594.86,0.00040547,14]
[354621062,1740595968494,-635.18,0.00040547,14]
[354621063,1740595968503,-858.4,0.00040547,14]
[354621064,1740595968513,-617.43,0.00040547,14]
[354621065,1740595968523,-500.0,0.00040547,14]
[354621066,1740595968533,-665.21,0.00040547,14]
[354621067,1740595968543,-500.0,0.00040547,14]
[354621068,1740595968553,-1850.02,0.00040547,14]
[354621069,1740595968563,-1161.63,0.00040547,14]
[354621070,1740595968572,-1036.04,0.00040547,14]
[354621071,1740595968582,-2240.29,0.00040547,14]
[354621072,1740595968593,-608.93,0.00040547,14]
[354621073,1740595968602,-500.0,0.00040547,14]
[354621074,1740595968612,-2310.8,0.00040547,14]
[354621075,1740595968622,-500.0,0.00040547,14]
[354621076,1740595968631,-1018.81,0.00040547,14]
[354621077,1740595968642,-500.0,0.00040547,14]
[354621078,1740595968654,-871.69,0.00040547,14]
[354621079,1740595968663,-1006.27,0.00040547,14]
[354621080,1740595968673,-1116.49,0.00040547,14]
[354621081,1740595968683,-595.91,0.00040547,14]
[354621082,1740595968693,-641.45,0.00040547,14]
[354621083,1740595968703,-772.83,0.00040547,14]
[354621084,1740595968713,-1308.99,0.00040547,14]
[354621085,1740595968723,-872.15,0.00040547,14]
[354621086,1740595968733,-935.7,0.00040547,14]
[354621087,1740595968742,-649.25,0.00040547,14]
[354621088,1740595968752,-1082.33,0.00040547,14]
[354621089,1740595968762,-500.0,0.00040547,14]
[354621090,1740595968772,-513.39,0.00040547,14]
[354621091,1740595968782,-1176.81,0.00040547,14]
[354621092,1740595968792,-1686.11,0.00040547,14]
[354621093,1740595968801,-547.24,0.00040547,14]
[354621094,1740595968811,-538.09,0.00040547,14]
[354621095,1740595968820,-811.61,0.00040547,14]
[354621096,1740595968830,-1804.38,0.00040547,14]
[354621097,1740595968840,-969.08,0.00040547,14]
[354621098,1740595968851,-2234.9,0.00040547,14]
[354621099,1740595968860,-877.13,0.00040547,14]
[354621100,1740595968870,-582.64,0.00040547,14]
[354621101,1740595968880,-500.0,0.00040547,14]
[354621102,1740595968890,-1855.35,0.00040547,14]
[354621103,1740595968900,-500.0,0.00040547,14]
[354621104,1740595968910,-1019.59,0.00040547,14]
[354621105,1740595968920,-2120.11,0.00040547,14]
[354621106,1740595968929,-1021.29,0.00040547,14]
[354621107,1740595969130,-1613.94,0.00040547,14]
[354621108,1740595969142,-572.27,0.00040547,14]
[354621109,1740595969153,-982.48,0.00040547,14]
[354621110,1740595969163,-1105.78,0.00040547,14]
[354621111,1740595969174,-2258.29,0.00040547,14]
[354621112,1740595969185,-500.0,0.00040547,14]
[354621113,1740595969195,-1496.14,0.00040547,14]
[354621114,1740595969206,-1313.98,0.00040547,14]
[354621115,1740595969216,-782.62,0.00040547,14]
[354621116,1740595969226,-633.15,0.00040547,14]
[354621117,1740595969236,-1614.67,0.00040547,14]
[354621118,1740595969246,-777.94,0.00040547,14]
[354621119,1740595969256,-1119.74,0.00040547,14]
[354621120,1740595969266,-630.05,0.00040547,14]
[354621121,1740595969281,-500.0,0.00040547,14]
[354621122,1740595969290,-1550.01,0.00040547,14]
[354621123,1740595969301,-898.54,0.00040547,14]
[354621124,1740595969311,-986.29,0.00040547,14]
[354621125,1740595969321,-666.5,0.00040547,14]
[354621126,1740595969332,-1800.45,0.00040547,14]
[354621127,1740595969344,-1038.19,0.00040547,14]
[354621128,1740595969355,-722.35,0.00040547,14]
[354621129,1740595969366,-777.79,0.00040547,14]
[354621130,1740595969376,-583.31,0.00040547,14]
[354621131,1740595969387,-1016.47,0.00040547,14]
[354621132,1740595969400,-746.65,0.00040547,14]
[354621133,1740595969411,-529.67,0.00040547,14]
[354621134,1740595969421,-806.05,0.00040547,14]
[354621135,1740595969431,-886.7,0.00040547,14]
[354621136,1740595969440,-820.28,0.00040547,14]
[354621137,1740595969450,-1501.14,0.00040547,14]
[354621138,1740595969460,-921.34,0.00040547,14]
[354621139,1740595969469,-699.59,0.00040547,14]
[354621140,1740595969478,-1003.76,0.00040547,14]
[354621141,1740595969488,-1495.63,0.00040547,14]
[354621142,1740595969497,-834.44,0.00040547,14]
[354621143,1740595969506,-831.3,0.00040547,14]
[354621144,1740595969516,-675.74,0.00040547,14]
[354621145,1740595969525,-917.03,0.00040547,14]
[354621146,1740595969535,-551.68,0.00040547,14]
[354621147,1740595969544,-681.62,0.00040547,14]
[354621148,1740595969554,-1958.47,0.00040547,14]
[354621149,1740595969564,-1067.6,0.00040547,14]
[354621150,1740595969573,-500.0,0.00040547,14]
[354621151,1740595969583,-636.63,0.00040547,14]
[354621152,1740595969593,-1007.51,0.00040547,14]
[354621153,1740595969603,-826.67,0.00040547,14]
[354621154,1740595969614,-532.65,0.00040547,14]
[354621155,1740595969623,-1255.98,0.00040547,14]
[354621156,1740595969634,-1084.65,0.00040547,14]
[354621157,1740595969643,-510.04,0.00040547,14]
[354621158,1740595969655,-1101.48,0.00040547,14]
[354621159,1740595969666,-634.72,0.00040547,14]
[354621160,1740595969676,-842.79,0.00040547,14]
[354621161,1740595969685,-861.46,0.00040547,14]
[354621162,1740595969695,-500.0,0.00040547,14]
[354621163,1740595969705,-765.4,0.00040547,14]
[354621164,1740595969714,-604.9,0.00040547,14]
[354621165,1740595969725,-1116.67,0.00040547,14]
[354621166,1740595969734,-500.0,0.00040547,14]
[354621167,1740595969744,-1441.7,0.00040547,14]
[354621168,1740595969754,-754.28,0.00040547,14]
[354621169,1740595969764,-929.23,0.00040547,14]
[354621170,1740595969773,-1403.66,0.00040547,14]
[354621171,1740595969783,-718.11,0.00040547,14]
[354621172,1740595969792,-1217.5,0.00040547,14]
[354621173,1740595969802,-1107.15,0.00040547,14]
[354621174,1740595969812,-1834.12,0.00040547,14]
[354621175,1740595969821,-902.19,0.00040547,14]
[354621176,1740595969831,-561.55,0.00040547,14]
[354621177,1740595969841,-565.94,0.00040547,14]
[354621178,1740595969850,-1996.52,0.00040547,14]
[354621179,1740595969859,-500.0,0.00040547,14]
[354621180,1740595969869,-563.43,0.00040547,14]
[354621181,1740595969878,-1467.19,0.00040547,14]
[354621182,1740595969888,-1321.18,0.00040547,14]
[354621183,1740595969901,-1902.42,0.00040547,14]
[354621184,1740595969911,-1140.97,0.00040547,14]
[354621185,1740595969920,-528.46,0.00040547,14]
[354621186,1740595969930,-651.71,0.00040547,14]
[354621187,1740595969940,-1073.87,0.00040547,14]
[354621188,1740595969950,-1235.9,0.00040547,14]
[354621189,1740595969959,-583.0,0.00040547,14]
[354621190,1740595969969,-642.59,0.00040547,14]
[354621191,1740595969984,-1162.07,0.00040547,14]
[354621192,1740595969995,-1175.03,0.00040547,14]
[354621193,1740595970005,-500.0,0.00040547,14]
[354621194,1740595970015,-1123.12,0.00040547,14]
[354621195,1740595970026,-1360.38,0.00040547,14]
[354621196,1740595970037,-990.04,0.00040547,14]
[354621197,1740595970047,-758.81,0.00040547,14]
[354621198,1740595970057,-500.0,0.00040547,14]
[354621199,1740595970067,-1858.11,0.00040547,14]
[354621200,1740595970077,-743.78,0.00040547,14]
[354621201,1740595970087,-836.2,0.00040547,14]
[354621202,1740595970098,-552.16,0.00040547,14]
[354621203,1740595970109,-957.01,0.00040547,14]
[354621204,1740595970119,-1949.61,0.00040547,14]
[354621205,1740595970130,-1008.01,0.00040547,14]
[354621206,1740595970141,-1466.22,0.00040547,14]
[354621207,1740595970153,-1152.19,0.00040547,14]
[354621208,1740595970164,-2482.2,0.00040547,14]
[354621209,1740595970175,-1828.52,0.00040547,14]
[354621210,1740595970186,-527.63,0.00040547,14]
[354621211,1740595970197,-873.77,0.00040547,14]
[354621212,1740595970209,-1665.67,0.00040547,14]
[354621213,1740595970221,-500.0,0.00040547,14]
[354621214,1740595970232,-1934.6,0.00040547,14]
[354621215,1740595970243,-786.06,0.00040547,14]
[354621216,1740595970255,-1875.12,0.00040547,14]
[354621217,1740595970266,-1075.72,0.00040547,14]
[354621218,1740595970276,-554.85,0.00040547,14]
[354621219,1740595970286,-956.32,0.00040547,14]
[354621220,1740595970296,-1163.37,0.00040547,14]
[354621221,1740595970305,-500.0,0.00040547,14]
[354621222,1740595970315,-1037.67,0.00040547,14]
[354621223,1740595970325,-2110.11,0.00040547,14]
[354621224,1740595970335,-655.67,0.00040547,14]
[354621225,1740595970345,-519.01,0.00040547,14]
[354621226,1740595970354,-500.0,0.00040547,14]
[354621227,1740595970364,-754.12,0.00040547,14]
[354621228,1740595970374,-1351.39,0.00040547,14]
[354621229,1740595970383,-1595.01,0.00040547,14]
[354621230,1740595970393,-883.23,0.00040547,14]
[354621231,1740595970405,-978.64,0.00040547,14]
[354621232,1740595970415,-544.48,0.00040547,14]
[354621233,1740595970425,-1282.93,0.00040547,14]
[354621234,1740595970435,-500.0,0.00040547,14]
[354621235,1740595970444,-1979.65,0.00040547,14]
[354621236,1740595970454,-204.16,0.00040547,14]
[354621237,1740595970465,-1465.82,0.00040547,14]
[354621238,1740595970474,-500.0,0.00040547,14]
[354621239,1740595970484,-1395.89,0.00040547,14]
[354621240,1740595970494,-854.86,0.00040547,14]
[354621241,1740595970503,-1505.0,0.00040547,14]
[354621242,1740595970513,-924.09,0.00040547,14]
[354621243,1740595970522,-711.08,0.00040547,14]
[354621244,1740595970532,-552.43,0.00040547,14]
[354621245,1740595970541,-895.76,0.00040547,14]
[354621246,1740595970551,-932.59,0.00040547,14]
[354621247,1740595970560,-1558.86,0.00040547,14]
[354621248,1740595970570,-912.19,0.00040547,14]
[354621249,1740595970579,-551.46,0.00040547,14]
[354621250,1740595970589,-3271.55,0.00040547,14]
[354621251,1740595970598,-3117.32,0.00040547,14]
[354621252,1740595970608,-896.05,0.00040547,14]
[354621253,1740595970618,-1469.5,0.00040547,14]
[354621254,1740595970627,-1970.34,0.00040547,14]
[354621255,1740595970636,-1219.67,0.00040547,14]
[354621256,1740595970648,-500.0,0.00040547,14]
[354621257,1740595970658,-1258.23,0.00040547,14]
[354621258,1740595970669,-1003.98,0.00040547,14]
[354621259,1740595970679,-802.71,0.00040547,14]
[354621260,1740595970690,-1048.22,0.00040547,14]
[354621261,1740595970699,-500.0,0.00040547,14]
[354621262,1740595970709,-12754.69,0.00040547,14]
[354621263,1740595970719,-760.48,0.00040547,14]
[354621264,1740595970729,-1559.74,0.00040547,14]
[354621265,1740595970738,-1039.17,0.00040547,14]
[354621266,1740595970748,-968.47,0.00040547,14]
[354621267,1740595970758,-975.3,0.00040547,14]
[354621268,1740595970768,-884.61,0.00040547,14]
[354621269,1740595970778,-677.65,0.00040547,14]
[354621270,1740595970787,-581.51,0.00040547,14]
[354621271,1740595970797,-559.35,0.00040547,14]
[354621272,1740595970806,-1068.0,0.00040547,14]
[354621273,1740595970816,-1472.3,0.00040547,14]
[354621274,1740595970826,-1096.63,0.00040547,14]
[354621275,1740595970836,-882.85,0.00040547,14]
[354621276,1740595970845,-505.62,0.00040547,14]
[354621277,1740595970855,-1708.56,0.00040547,14]